lending/lending_fUSD_20251107
["ID","MTS","AMOUNT","RATE_DAILY","PERIOD"]
[393335609,1762488631710,-2442.43999,0.0001706,2]
[393335610,1762488631722,-712.88799562,0.0001706,2]
[393335611,1762488631834,-7101.18317895,0.0001706,2]
[393335614,1762488631857,-1219.05545319,0.0001706,2]
[393335616,1762488631868,-453.90225497,0.0001706,2]
[393335623,1762488631927,-252.73500001,0.0001706,2]
[393335651,1762488637499,-201.22298519,0.00017059,2]
[393335652,1762488637511,-35635.23449196,0.0001706,2]
[393335654,1762488637524,-1041.04,0.00017111,2]
[393335655,1762488637535,-611.0,0.00017179,2]
[393335656,1762488637547,-999.0,0.00017226,3]
[393335657,1762488637560,-849.75899556,0.00017373,2]
[393335658,1762488637571,-849.75899556,0.00017399,2]
[393335659,1762488637582,-302.46522989,0.00017399,2]
[393335660,1762488637594,-8711.76239441,0.00017399,2]
[393335661,1762488637605,-9813.74084271,0.00017399,2]
[393335662,1762488637616,-497.25064746,0.00017399,2]
[393335663,1762488637627,-5283.01,0.00017455,2]
[393335664,1762488637638,-550.0,0.00017472,2]
[393335665,1762488637649,-501.65143851,0.00017473,2]
[393335666,1762488637659,-481.09604511,0.00017473,2]
[393335667,1762488637671,-500.0,0.00017473,2]
[393335668,1762488637682,-500.0,0.00017473,2]
[393335669,1762488637692,-500.0,0.00017473,2]
[393335670,1762488637703,-500.0,0.00017473,2]
[393335671,1762488637714,-501.13639247,0.00017473,2]
[393335672,1762488637725,-500.0,0.00017473,2]
[393335673,1762488637735,-329.81666734,0.00017473,2]
[393335674,1762488637747,-540.33648278,0.00017473,2]
[393335675,1762488637758,-500.0,0.00017473,2]
[393335676,1762488637769,-500.0,0.00017473,2]
[393335677,1762488637780,-500.0,0.00017473,2]
[393335678,1762488637790,-500.0,0.00017473,2]
[393335679,1762488637801,-500.0,0.00017473,2]
[393335680,1762488637812,-500.0,0.00017473,2]
[393335682,1762488637823,-500.0,0.00017473,2]
[393335684,1762488637833,-500.0,0.00017473,2]
[393335686,1762488637844,-500.0,0.00017473,2]
[393335688,1762488637854,-659.68,0.00017473,2]
[393335690,1762488637864,-151.0,0.00017488,2]
[393335692,1762488637874,-151.0,0.00017488,2]
[393335696,1762488637885,-151.0,0.00017488,2]
[393335699,1762488637895,-151.0,0.00017488,2]
[393335701,1762488637908,-151.0,0.00017488,2]
[393335703,1762488637919,-151.0,0.00017488,2]
[393335707,1762488637930,-151.0,0.00017488,2]
[393335709,1762488637940,-151.0,0.00017488,2]
[393335711,1762488637951,-151.0,0.00017488,2]
[393335713,1762488637961,-151.0,0.00017488,2]
[393335715,1762488637971,-151.0,0.00017488,2]
[393335717,1762488637982,-151.0,0.00017488,2]
[393335719,1762488637992,-151.0,0.00017488,2]
[393335722,1762488638002,-151.0,0.00017488,2]
[393335724,1762488638014,-151.0,0.00017488,2]
[393335726,1762488638024,-151.0,0.00017488,2]
[393335727,1762488638034,-151.0,0.00017488,2]
[393335728,1762488638044,-151.0,0.00017488,2]
[393335729,1762488638055,-151.0,0.00017488,2]
[393335730,1762488638065,-151.0,0.00017488,2]
[393335731,1762488638075,-163.39,0.00017489,2]
[393335732,1762488638085,-500.0,0.00017498,2]
[393335733,1762488638095,-500.0,0.00017498,2]
[393335734,1762488638105,-500.0,0.00017498,2]
[393335735,1762488638116,-151.0,0.00017498,2]
[393335737,1762488638127,-151.0,0.00017498,2]
[393335739,1762488638137,-538.05087758,0.00017498,2]
[393335741,1762488638148,-500.0,0.00017498,2]
[393335743,1762488638158,-510.94694796,0.00017498,2]
[393335745,1762488638170,-500.0,0.00017498,2]
[393335748,1762488638181,-500.0,0.00017498,2]
[393335750,1762488638191,-500.0,0.00017498,2]
[393335752,1762488638202,-500.0,0.00017498,2]
[393335754,1762488638212,-500.0,0.00017498,2]
[393335756,1762488638223,-4391.4598,0.00017499,2]
[393335757,1762488638235,-420000.0,0.00017499,2]
[393335758,1762488638246,-1000.0,0.00017499,2]
[393335759,1762488638256,-500.0,0.00017598,2]
[393335760,1762488638267,-500.0,0.00017598,2]
[393335762,1762488638278,-500.0,0.00017598,2]
[393335763,1762488638289,-542.68581672,0.00017598,2]
[393335764,1762488638299,-659.68,0.00017747,2]
[393335765,1762488638310,-200.51355,0.00018,2]
[393335766,1762488638320,-875.11589732,0.00018021,2]
[393335767,1762488638331,-1149.70851277,0.00018021,2]
[393335768,1762488638341,-1000.0,0.00018021,2]
[393335769,1762488638352,-1000.0,0.00018021,2]
[393335770,1762488638363,-1000.0,0.00018021,2]
[393335771,1762488638375,-1000.0,0.00018021,2]
[393335772,1762488638386,-1000.0,0.00018021,2]
[393335773,1762488638397,-1000.0,0.00018021,2]
[393335774,1762488638408,-1000.0,0.00018021,2]
[393335775,1762488638420,-1004.14266789,0.00018021,2]
[393335776,1762488638432,-504.43139356,0.00018021,2]
[393335777,1762488638443,-659.68,0.00018021,2]
[393335778,1762488638454,-222.0,0.00018031,2]
[393335779,1762488638465,-280.0,0.00018184,2]
[393335780,1762488638476,-1852.42,0.00018241,2]
[393335781,1762488638489,-659.68,0.00018295,2]
[393335782,1762488638500,-341.0,0.00018353,2]
[393335783,1762488638511,-407.0,0.00018372,2]
[393335784,1762488638522,-407.0,0.00018388,2]
[393335785,1762488638533,-289.67,0.00018401,2]
[393335786,1762488638542,-407.0,0.00018415,2]
[393335787,1762488638555,-1000.0,0.00018427,2]
[393335788,1762488638566,-407.0,0.00018454,2]
[393335789,1762488638577,-407.0,0.00018461,2]
[393335790,1762488638588,-500.0,0.00018513,2]
[393335791,1762488638599,-500.0,0.00018513,2]
[393335792,1762488638611,-200.0,0.00018514,2]
[393335793,1762488638622,-299.99,0.00018533,4]
[393335794,1762488638632,-9999.99,0.00018533,2]
[393335795,1762488638641,-9999.99,0.00018533,2]
[393335796,1762488638651,-150.99,0.00018533,2]
[393335797,1762488638660,-9198.04,0.00018533,5]
[393335798,1762488638669,-2355.64,0.00018533,2]
[393335799,1762488638932,-9999.99,0.00018533,2]
[393335800,1762488638952,-17435.97,0.00018533,2]
[393335801,1762488638962,-7484.28,0.00018533,2]
[393335802,1762488638972,-37792.21,0.00018533,2]
[393335803,1762488638982,-9999.99,0.00018533,2]
[393335804,1762488638991,-999.99,0.00018533,2]
[393335805,1762488639000,-659.68,0.00018568,2]
[393335806,1762488639010,-1500.0,0.00018568,2]
[393335807,1762488639019,-1500.0,0.00018568,2]
[393335808,1762488639030,-502.54057635,0.00018568,2]
[393335809,1762488639039,-1560.6806068,0.00018568,2]
[393335810,1762488639049,-500.0,0.00018568,2]
[393335811,1762488639058,-1500.0,0.00018568,2]
[393335812,1762488639067,-935.0,0.00018572,2]
[393335813,1762488639078,-420.0,0.00018632,2]
[393335814,1762488639087,-420.0,0.00018632,2]
[393335815,1762488639097,-407.0,0.0001871,2]
[393335816,1762488639106,-1680.0,0.00018724,2]
[393335817,1762488639115,-5000.0,0.00018732,2]
[393335818,1762488639125,-407.0,0.00018743,2]
[393335819,1762488639135,-250.0,0.00018747,2]
[393335820,1762488639144,-250.0,0.00018822,2]
[393335821,1762488639154,-193.0,0.00018822,2]
[393335822,1762488639165,-300.0,0.00018822,2]
[393335823,1762488639175,-2500.0,0.00018822,2]
[393335824,1762488639184,-500.0,0.00018832,2]
[393335825,1762488639193,-500.0,0.00018832,2]
[393335826,1762488639203,-500.0,0.00018832,2]
[393335827,1762488639212,-500.0,0.00018832,2]
[393335828,1762488639221,-500.0,0.00018832,2]
[393335829,1762488639230,-500.0,0.00018832,2]
[393335830,1762488639239,-500.0,0.00018832,2]
[393335831,1762488639248,-59308.37,0.00018832,2]
[393335832,1762488639257,-659.68,0.00018842,2]
[393335833,1762488639267,-503.85495564,0.00018873,2]
[393335834,1762488639276,-500.0,0.00018873,2]
[393335835,1762488639285,-500.0,0.00018873,2]
[393335836,1762488639295,-500.0,0.00018873,2]
[393335837,1762488639304,-500.0,0.00018873,2]
[393335838,1762488639313,-467.21226766,0.00018873,2]
[393335839,1762488639322,-500.0,0.00018873,2]
[393335840,1762488639332,-500.0,0.00018873,2]
[393335841,1762488639341,-481.92632213,0.00018873,2]
[393335842,1762488639351,-500.0,0.00018873,2]
[393335843,1762488639360,-501.20529648,0.00018873,2]
[393335844,1762488639370,-500.0,0.00018873,2]
[393335845,1762488639379,-500.0,0.00018873,2]
[393335846,1762488639389,-500.0,0.00018873,2]
[393335847,1762488639398,-505.50862562,0.00018873,2]
[393335848,1762488639407,-500.40959202,0.00018873,2]
[393335849,1762488639417,-500.0,0.00018873,2]
[393335850,1762488639427,-500.0,0.00018873,2]
[393335851,1762488639437,-500.2462784,0.00018873,2]
[393335852,1762488639446,-500.0,0.00018873,2]
[393335853,1762488639456,-500.0,0.00018873,2]
[393335854,1762488639465,-500.0,0.00018873,2]
[393335855,1762488639477,-635.57618945,0.00018873,2]
[393335856,1762488639487,-500.0,0.00018873,2]
[393335857,1762488639496,-500.0,0.00018873,2]
[393335859,1762488639505,-500.0,0.00018873,2]
[393335862,1762488639516,-183.63983714,0.00018873,2]
[393335864,1762488639524,-500.0,0.00018873,2]
[393335866,1762488639533,-500.0,0.00018873,2]
[393335868,1762488639543,-500.0,0.00018873,2]
[393335870,1762488639552,-500.0,0.00018873,2]
[393335871,1762488639563,-407.0,0.0001891,2]
[393335872,1762488639572,-462.54,0.0001891,2]
[393335873,1762488639581,-407.0,0.00018984,2]
[393335874,1762488639590,-500.0,0.00018999,2]
[393335875,1762488639599,-937.28106649,0.00019,2]
[393335876,1762488639608,-300.0,0.00019,2]
[393335877,1762488639618,-3466.7364346,0.00019,2]
[393335878,1762488639627,-407.0,0.00019008,2]
[393335879,1762488639636,-407.0,0.00019078,2]
[393335880,1762488639645,-195.0,0.0001911,2]
[393335881,1762488639654,-659.68,0.00019116,2]
[393335882,1762488639663,-2000.0,0.00019116,2]
[393335883,1762488639672,-2000.0,0.00019116,2]
[393335884,1762488639681,-2000.0,0.00019116,2]
[393335885,1762488639691,-407.0,0.00019117,2]
[393335886,1762488639700,-250.0,0.00019138,2]
[393335887,1762488639709,-407.0,0.00019209,2]
[393335888,1762488639719,-181.03,0.00019218,2]
[393335889,1762488639728,-407.0,0.00019261,2]
[393335890,1762488639737,-659.73677904,0.0001939,2]
[393335891,1762488639746,-407.0,0.00019408,2]
[393335892,1762488639756,-1001.0611995,0.00019421,2]
[393335893,1762488639766,-1000.0,0.00019421,2]
[393335894,1762488639775,-500.0,0.00019421,2]
[393335895,1762488639785,-1013.74679932,0.00019421,2]
[393335896,1762488639794,-1000.0,0.00019421,2]
[393335897,1762488639803,-992.63712394,0.00019421,2]
[393335898,1762488639813,-172.40826591,0.00019421,2]
[393335899,1762488639823,-1000.0,0.00019421,2]
[393335900,1762488639832,-1000.0,0.00019421,2]
[393335901,1762488639842,-1000.0,0.00019421,2]
[393335902,1762488639851,-1000.0,0.00019421,2]
[393335903,1762488639860,-1092.12362524,0.00019421,2]
[393335904,1762488639871,-1000.0,0.00019421,2]
[393335905,1762488639880,-1000.0,0.00019421,2]
[393335906,1762488639890,-716.85911878,0.00019421,2]
[393335907,1762488639899,-1000.0,0.00019421,2]
[393335908,1762488639908,-1000.0,0.00019421,2]
[393335909,1762488639919,-1000.0,0.00019421,2]
[393335910,1762488639928,-1000.0,0.00019421,2]
[393335911,1762488639937,-1000.0,0.00019421,2]
[393335912,1762488639946,-1000.0,0.00019421,2]
[393335913,1762488639955,-289.67,0.00019423,2]
[393335914,1762488639964,-407.0,0.00019523,2]
[393335915,1762488639973,-407.0,0.00019554,2]
[393335916,1762488639982,-407.0,0.00019579,2]
[393335917,1762488639991,-407.0,0.00019581,2]
[393335918,1762488640000,-410.96302396,0.00019599,2]
[393335919,1762488640009,-223.18267872,0.0001962,7]
[393335920,1762488640018,-407.0,0.00019633,2]
[393335921,1762488640027,-500.0,0.00019664,2]
[393335922,1762488640036,-2500.0,0.00019664,2]
[393335923,1762488640044,-2500.0,0.00019664,2]
[393335924,1762488640054,-2301.0420686,0.00019664,2]
[393335925,1762488640063,-407.0,0.00019721,2]
[393335926,1762488640072,-294.0,0.00019743,2]
[393335927,1762488640082,-8711.76239433,0.00019759,2]
[393335928,1762488640092,-9813.7408427,0.00019759,2]
[393335929,1762488640101,-302.46522981,0.00019761,2]
[393335930,1762488640111,-407.0,0.00019774,2]
[393335931,1762488640120,-501.41250304,0.00019832,2]
[393335932,1762488640130,-500.0,0.00019846,2]
[393335933,1762488640139,-407.0,0.0001986,2]
[393335934,1762488640148,-410.96302396,0.0001988,2]
[393335935,1762488640158,-400.0,0.000199,7]
[393335936,1762488640168,-623.18720722,0.00019959,2]
[393335937,1762488640177,-1500.0,0.00019968,2]
[393335938,1762488640186,-1500.0,0.00019968,2]
[393335939,1762488640196,-1522.61319105,0.00019968,2]
[393335940,1762488640205,-1500.0,0.00019968,2]
[393335941,1762488640215,-810.85902672,0.00019968,2]
[393335942,1762488640225,-644.81873748,0.00019968,2]
[393335943,1762488640234,-1500.0,0.00019968,2]
[393335944,1762488640244,-1500.0,0.00019968,2]
[393335945,1762488640254,-1500.0,0.00019968,2]
[393335946,1762488640263,-1500.0,0.00019968,2]
[393335947,1762488640273,-892.14835424,0.00019968,2]
[393335948,1762488640282,-873.81755517,0.00019968,2]
[393335949,1762488640299,-1500.0,0.00019968,2]
[393335950,1762488640308,-1500.0,0.00019968,2]
[393335951,1762488640317,-500.0,0.00019988,2]
[393335952,1762488640326,-203.84,0.0002,2]
[393335953,1762488640335,-200.0,0.0002,2]
[393335954,1762488640345,-407.0,0.00020026,2]
[393335955,1762488640354,-150.0,0.00020118,2]
[393335956,1762488640363,-410.96302396,0.00020161,2]
[393335957,1762488640373,-407.0,0.00020163,2]
[393335958,1762488640382,-3000.0,0.00020212,2]
[393335959,1762488640391,-808.85599281,0.00020212,2]
[393335960,1762488640400,-587.0,0.00020349,2]
[393335961,1762488640409,-587.0,0.00020349,2]
[393335962,1762488640419,-497.25064741,0.00020436,2]
[393335963,1762488640428,-410.96302396,0.00020442,2]
[393335964,1762488640437,-289.67,0.00020446,2]
[393335965,1762488640447,-1008.49713198,0.00020516,2]
[393335966,1762488640456,-2014.60520456,0.00020516,2]
[393335967,1762488640465,-1060.77369819,0.00020516,2]
[393335968,1762488640479,-1587.9034712,0.00020516,2]
[393335969,1762488640491,-1254.16358819,0.00020516,2]
[393335970,1762488640500,-2000.0,0.00020516,2]
[393335971,1762488640509,-1647.04253758,0.00020516,2]
[393335972,1762488640518,-503.85054346,0.00020516,2]
[393335973,1762488640528,-1001.34025058,0.00020536,2]
[393335974,1762488640538,-2351.0,0.00020551,2]
[393335975,1762488640547,-250.0,0.00020666,2]
[393335976,1762488640556,-200.0,0.0002068,2]
[393335977,1762488640566,-1188.0,0.00020692,2]
[393335978,1762488640575,-905.0,0.00020692,2]
[393335979,1762488640584,-6659.0,0.00020692,2]
[393335980,1762488640593,-2142.0,0.00020692,2]
[393335981,1762488640603,-6476.0,0.00020692,2]
[393335982,1762488640612,-411.37398698,0.00020723,2]
[393335983,1762488640621,-1000.0,0.0002073,2]
[393335984,1762488640630,-150.0,0.00020738,2]
[393335985,1762488640639,-150.115,0.00020738,2]
[393335986,1762488640648,-150.177,0.00020738,2]
[393335987,1762488640657,-211.33,0.00020752,2]
[393335988,1762488640679,-288.312,0.00020752,2]
[393335989,1762488640688,-150.0,0.00020752,2]
[393335990,1762488640698,-150.171,0.00020752,2]
[393335991,1762488640707,-3424.0,0.00020752,2]
[393335992,1762488640716,-607.0,0.00020752,2]
[393335993,1762488640725,-574.0,0.00020752,2]
[393335994,1762488640734,-1316.0,0.00020752,2]
[393335995,1762488640743,-1596.0,0.00020752,2]
[393335996,1762488640752,-820.0,0.00020752,2]
[393335997,1762488640762,-812.0,0.00020752,2]
[393335998,1762488640771,-1273.0,0.00020752,2]
[393335999,1762488640780,-1523.22717164,0.0002076,2]
[393336000,1762488640790,-330.33341059,0.00020773,2]
[393336001,1762488640799,-500.0,0.00020773,2]
[393336002,1762488640808,-162.35810273,0.00020967,2]
[393336003,1762488640817,-350.0,0.00021,2]
[393336004,1762488640826,-3494.0,0.00021058,2]
[393336005,1762488640835,-2035.98606181,0.00021064,2]
[393336006,1762488640845,-352.75556532,0.00021214,2]
[393336007,1762488640854,-510.5905813,0.00021321,2]
[393336008,1762488640863,-289.67,0.00021468,2]
[393336009,1762488640872,-5000.0,0.00021918,2]
[393336010,1762488640882,-8711.76239433,0.0002212,2]
[393336011,1762488640891,-9813.7408427,0.0002212,2]
[393336012,1762488640901,-302.46522981,0.00022123,2]
[393336013,1762488640910,-823.0,0.00022224,2]
[393336014,1762488640920,-823.0,0.00022224,2]
[393336015,1762488640929,-289.67,0.0002249,2]
[393336016,1762488640938,-3292.0,0.00022556,2]
[393336017,1762488640947,-7789.24,0.00022562,2]
[393336018,1762488640956,-9999.99,0.00022562,2]
[393336019,1762488640965,-18604.15,0.00022562,2]
[393336020,1762488640974,-3932.19,0.00022628,2]
[393336021,1762488640983,-400.0,0.00023,2]
[393336022,1762488640992,-332.57745505,0.00023,2]
[393336023,1762488641001,-1000.0,0.00023034,2]
[393336024,1762488641011,-598.6394191,0.00023106,2]
[393336025,1762488641020,-283.09293269,0.00023184,2]
[393336026,1762488641029,-500.0,0.00023367,2]
[393336027,1762488641038,-500.0,0.00023367,2]
[393336028,1762488641048,-500.0,0.00023367,2]
[393336029,1762488641057,-311.42728449,0.00023367,2]
[393336030,1762488641067,-500.0,0.00023367,2]
[393336031,1762488641076,-500.0,0.00023367,2]
[393336032,1762488641086,-500.0,0.00023367,2]
[393336033,1762488641095,-289.67,0.00023512,2]
[393336034,1762488641105,-150.0,0.0002368,2]
[393336035,1762488641116,-1188.0,0.00023692,2]
[393336036,1762488641127,-905.0,0.00023692,2]
[393336037,1762488641140,-6659.0,0.00023692,2]
[393336038,1762488641151,-2142.0,0.00023692,2]
[393336039,1762488641160,-6476.0,0.00023692,2]
[393336040,1762488641170,-150.0,0.00023738,2]
[393336041,1762488641179,-150.0,0.00023738,2]
[393336042,1762488641189,-150.0,0.00023738,2]
[393336043,1762488641198,-462.54,0.00023751,2]
[393336044,1762488641207,-150.0,0.00023752,2]
[393336045,1762488641217,-150.0,0.00023752,2]
[393336046,1762488641227,-150.0,0.00023752,2]
[393336047,1762488641237,-3424.0,0.00023752,2]
[393336048,1762488641246,-607.0,0.00023752,2]
[393336049,1762488641256,-574.0,0.00023752,2]
[393336050,1762488641265,-1316.0,0.00023752,2]
[393336051,1762488641274,-1596.0,0.00023752,2]
[393336052,1762488641283,-820.0,0.00023752,2]
[393336053,1762488641293,-812.0,0.00023752,2]
[393336054,1762488641302,-1273.0,0.00023752,2]
[393336055,1762488641311,-611.0,0.00024051,2]
[393336056,1762488641321,-1152.0,0.00024272,2]
[393336057,1762488641330,-1152.0,0.00024272,2]
[393336058,1762488641340,-5800.0,0.00024312,2]
[393336059,1762488641350,-5800.0,0.00024321,2]
[393336060,1762488641360,-5800.0,0.00024329,2]
[393336061,1762488641369,-5800.0,0.00024338,2]
[393336062,1762488641378,-500.0,0.0002448,2]
[393336063,1762488641389,-8711.76239433,0.0002448,2]
[393336064,1762488641398,-9813.7408427,0.0002448,2]
[393336065,1762488641407,-302.46522981,0.00024485,2]
[393336066,1762488641418,-289.67,0.00024535,2]
[393336067,1762488641427,-500.0,0.00024543,2]
[393336068,1762488641436,-1000.0,0.00024658,2]
[393336069,1762488641446,-678.27,0.00024658,2]
[393336070,1762488641455,-174.3141501,0.00024751,2]
[393336071,1762488641464,-163.49583489,0.00024751,2]
[393336072,1762488641474,-4609.0,0.00024757,2]
[393336073,1762488641487,-525.5272976,0.0002479,2]
[393336074,1762488641496,-150.07,0.0002479,2]
[393336075,1762488641506,-150.07,0.0002479,2]
[393336076,1762488641516,-150.07,0.0002479,2]
[393336077,1762488641528,-500.0,0.00024799,2]
[393336078,1762488641537,-168.9322321,0.00024799,2]
[393336079,1762488641547,-528.96723604,0.00024799,2]
[393336080,1762488641559,-500.0,0.00024799,2]
[393336081,1762488641569,-500.0,0.00024799,2]
[393336082,1762488641579,-500.0,0.00024799,2]
[393336083,1762488641588,-500.0,0.00024799,2]
[393336084,1762488641599,-328173.286105,0.000248,3]
[393336085,1762488641608,-150.07,0.0002488,2]
[393336086,1762488641617,-150.07,0.0002488,2]
[393336087,1762488641627,-150.07,0.0002488,2]
[393336088,1762488641636,-500.0,0.00024889,2]
[393336089,1762488641646,-164086.643052,0.0002489,3]
[393336090,1762488641656,-500.0,0.00024899,2]
[393336091,1762488641665,-900.0,0.000249,9]
[393336092,1762488641675,-450.0,0.00025,2]
[393336093,1762488641684,-1029.95,0.00025,2]
[393336094,1762488641693,-198.0,0.00025,7]
[393336095,1762488641703,-1000.0,0.00025337,2]
[393336096,1762488641712,-1029.95,0.000255,2]
[393336097,1762488641721,-289.67,0.00025557,2]
[393336098,1762488641731,-1029.95,0.00026,30]
[393336099,1762488641740,-162.35810273,0.00026209,2]
[393336100,1762488641750,-1029.95,0.000265,30]
[393336101,1762488641759,-574.0,0.00026509,2]
[393336102,1762488641768,-1613.0,0.00026509,2]
[393336103,1762488641777,-289.67,0.00026579,2]
[393336104,1762488641786,-150.0,0.0002668,2]
[393336105,1762488641795,-157.45979605,0.0002669,2]
[393336106,1762488641804,-1188.0,0.00026692,2]
[393336107,1762488641814,-905.0,0.00026692,2]
[393336108,1762488641823,-6659.0,0.00026692,2]
[393336109,1762488641833,-2142.0,0.00026692,2]
[393336110,1762488641843,-6476.0,0.00026692,2]
[393336111,1762488641852,-150.07,0.00026712,2]
[393336112,1762488641862,-27347.7738421,0.00026723,3]
[393336113,1762488641871,-150.0,0.00026752,2]
[393336114,1762488641880,-3424.0,0.00026752,2]
[393336115,1762488641890,-607.0,0.00026752,2]
[393336116,1762488641899,-574.0,0.00026752,2]
[393336117,1762488641908,-1316.0,0.00026752,2]
[393336118,1762488641918,-1596.0,0.00026752,2]
[393336119,1762488641928,-820.0,0.00026752,2]
[393336120,1762488641937,-812.0,0.00026752,2]
[393336121,1762488641947,-1273.0,0.00026752,2]
[393336122,1762488641957,-8711.76239433,0.00026841,2]
[393336123,1762488641967,-9813.7408427,0.00026841,2]
[393336124,1762488641976,-302.46522981,0.00026847,2]
[393336125,1762488641986,-1459.0,0.00026874,2]
[393336126,1762488641996,-500.0,0.00027,2]
[393336127,1762488642005,-462.54,0.00027081,2]
[393336128,1762488642015,-6453.0,0.00027173,2]
[393336129,1762488642154,-150.07,0.00027377,2]
[393336130,1762488642164,-27347.7738421,0.00027387,3]
[393336131,1762488642173,-150.0,0.00027397,7]
[393336132,1762488642183,-1120.86,0.00027397,16]
[393336133,1762488642191,-678.27,0.00027397,2]
[393336134,1762488642200,-300.0,0.00027397,2]
[393336135,1762488642209,-289.67,0.00027602,2]
[393336136,1762488642219,-1000.0,0.0002764,2]
[393336137,1762488642228,-579.3877229,0.00027661,2]
[393336138,1762488642238,-1240.19,0.000277,7]
[393336139,1762488642247,-285.16,0.000277,7]
[393336140,1762488642256,-157.45979605,0.00027814,56]
[393336141,1762488642265,-500.0,0.00028081,7]
[393336142,1762488642274,-614.98439369,0.00028081,30]
[393336143,1762488642284,-500.0,0.00028081,120]
[393336144,1762488642293,-500.0,0.00028081,120]
[393336145,1762488642303,-244.77701906,0.00028082,6]
[393336146,1762488642312,-150.0,0.00028082,6]
[393336147,1762488642321,-150.0,0.00028082,6]
[393336148,1762488642331,-150.0,0.00028082,6]
[393336149,1762488642340,-150.0,0.00028082,6]
[393336150,1762488642349,-500.0,0.00028082,6]
[393336151,1762488642357,-150.0,0.00028082,6]
[393336152,1762488642367,-500.0,0.00028082,6]
[393336153,1762488642376,-500.0,0.00028082,6]
[393336154,1762488642386,-206.29164213,0.00028082,6]
[393336155,1762488642396,-170.52097631,0.00028082,6]
[393336156,1762488642406,-500.0,0.00028082,6]
[393336157,1762488642416,-500.0,0.00028082,6]
[393336158,1762488642425,-150.0,0.00028082,6]
[393336159,1762488642434,-500.0,0.00028082,2]
[393336160,1762488642444,-571.0,0.00028082,6]
[393336161,1762488642453,-500.0,0.00028082,6]
[393336162,1762488642462,-150.69644149,0.00028082,6]
[393336163,1762488642471,-202.69959715,0.00028082,6]
[393336164,1762488642483,-500.0,0.00028082,6]
[393336165,1762488642492,-500.0,0.00028082,6]
[393336166,1762488642501,-500.0,0.00028082,6]
[393336167,1762488642510,-500.0,0.00028082,6]
[393336168,1762488642520,-500.0,0.00028082,6]
[393336169,1762488642530,-500.0,0.00028082,6]
[393336170,1762488642539,-455.16123222,0.00028082,6]
[393336171,1762488642549,-150.0,0.00028082,6]
[393336172,1762488642561,-500.0,0.00028082,6]
[393336173,1762488642570,-150.0,0.00028082,2]
[393336175,1762488642579,-500.0,0.00028082,6]
[393336177,1762488642588,-500.0,0.00028082,6]
[393336178,1762488642597,-500.0,0.00028082,6]
[393336179,1762488642606,-150.0,0.00028082,2]
[393336180,1762488642615,-150.0,0.00028082,6]
[393336181,1762488642624,-500.0,0.00028082,6]
[393336182,1762488642633,-500.0,0.00028082,6]
[393336183,1762488642642,-150.0,0.00028082,6]
[393336184,1762488642651,-2000.0,0.000282,2]
[393336185,1762488642660,-150.0,0.00028219,6]
[393336186,1762488642670,-150.0,0.00028219,6]
[393336187,1762488642680,-150.0,0.00028219,6]
[393336188,1762488642689,-153.24433891,0.00028219,6]
[393336189,1762488642699,-604.69040435,0.00028219,6]
[393336190,1762488642708,-150.0,0.00028219,6]
[393336191,1762488642717,-500.0,0.00028219,6]
[393336192,1762488642727,-500.0,0.00028219,6]